fUST/lending_fUST_20241022
["ID","MTS","AMOUNT","RATE_DAILY","PERIOD"]
[340658080,1729608661564,-151.0,0.0001726,2]
[340658081,1729608661574,-151.0,0.0001726,2]
[340658082,1729608661583,-500.0,0.0001726,2]
[340658083,1729608661593,-500.0,0.0001726,2]
[340658084,1729608661604,-500.0,0.0001726,2]
[340658085,1729608661613,-500.0,0.0001726,2]
[340658086,1729608661622,-189.38343324,0.0001726,2]
[340658087,1729608661632,-189.07731,0.0001726,2]
[340658088,1729608661641,-500.0,0.0001726,2]
[340658089,1729608661651,-500.0,0.0001726,2]
[340658090,1729608661661,-570.85630473,0.0001726,2]
[340658091,1729608661670,-665.58,0.0001726,2]
[340658092,1729608661681,-826.35,0.0001726,2]
[340658093,1729608661690,-500.0,0.0001726,2]
[340658094,1729608661699,-500.0,0.0001726,2]
[340658095,1729608661709,-500.0,0.0001726,2]
[340658096,1729608661719,-1000.0,0.0001726,2]
[340658097,1729608661730,-500.0,0.0001726,2]
[340658098,1729608661740,-567.91,0.0001726,2]
[340658099,1729608661749,-151.0,0.0001726,2]
[340658100,1729608661759,-229.35941627,0.0001726,2]
[340658101,1729608661775,-500.0,0.0001726,2]
[340658102,1729608661786,-500.0,0.0001726,2]
[340658103,1729608661797,-500.0,0.0001726,2]
[340658104,1729608661807,-151.0,0.0001726,2]
[340658105,1729608661818,-151.0,0.0001726,2]
[340658106,1729608661828,-500.0,0.0001726,2]
[340658107,1729608661839,-151.0,0.0001726,2]
[340658108,1729608661850,-176.718045,0.0001726,2]
[340658109,1729608661860,-500.0,0.0001726,2]
[340658110,1729608661870,-500.0,0.0001726,2]
[340658111,1729608661880,-151.0,0.0001726,2]
[340658112,1729608661891,-500.0,0.0001726,2]
[340658113,1729608661901,-500.0,0.0001726,2]
[340658114,1729608661911,-713.81,0.0001726,2]
[340658115,1729608661921,-500.0,0.0001726,2]
[340658116,1729608661930,-361.488313,0.0001726,2]
[340658117,1729608661940,-263.58,0.0001726,2]
[340658118,1729608661949,-500.0,0.0001726,2]
[340658119,1729608661959,-660.77,0.0001726,2]
[340658120,1729608661970,-361.488313,0.0001726,2]
[340658121,1729608661980,-500.0,0.0001726,2]
[340658122,1729608661990,-551.66,0.0001726,2]
[340658123,1729608662001,-754.58,0.0001726,2]
[340658124,1729608662014,-1146.073418,0.0001726,2]
[340658125,1729608662025,-1146.073418,0.0001726,2]
[340658126,1729608662035,-795.47,0.0001726,2]
[340658127,1729608662044,-500.0,0.0001726,2]
[340658128,1729608662054,-749.34,0.0001726,2]
[340658129,1729608662064,-500.0,0.0001726,2]
[340658130,1729608662074,-151.0,0.0001726,2]
[340658131,1729608662083,-500.0,0.0001726,2]
[340658132,1729608662094,-500.0,0.0001726,2]
[340658133,1729608662104,-500.0,0.0001726,2]
[340658134,1729608662114,-500.0,0.0001726,2]
[340658135,1729608662124,-500.0,0.0001726,2]
[340658136,1729608662134,-626.98,0.0001726,2]
[340658137,1729608662144,-151.0,0.0001726,2]
[340658138,1729608662154,-500.0,0.0001726,2]
[340658139,1729608662163,-500.0,0.0001726,2]
[340658140,1729608662174,-1265.04,0.0001726,2]
[340658141,1729608662184,-624.21,0.0001726,2]
[340658142,1729608662194,-172.647933,0.0001726,2]
[340658143,1729608662205,-614.3,0.0001726,2]
[340658144,1729608662215,-172.647933,0.0001726,2]
[340658145,1729608662225,-500.0,0.0001726,2]
[340658146,1729608662236,-516.71,0.0001726,2]
[340658147,1729608662246,-500.0,0.0001726,2]
[340658148,1729608662256,-1032.21,0.0001726,2]
[340658149,1729608662266,-916.12,0.0001726,2]
[340658150,1729608662277,-151.0,0.0001726,2]
[340658151,1729608662287,-500.0,0.0001726,2]
[340658152,1729608662297,-500.0,0.0001726,2]
[340658153,1729608662307,-530.55,0.0001726,2]
[340658154,1729608662317,-151.85434241,0.0001726,2]
[340658155,1729608662328,-687.75,0.0001726,2]
[340658156,1729608662339,-151.0,0.0001726,2]
[340658157,1729608662350,-500.0,0.0001726,2]
[340658158,1729608662360,-500.0,0.0001726,2]
[340658159,1729608662370,-500.0,0.0001726,2]
[340658160,1729608662380,-582.19,0.0001726,2]
[340658161,1729608662390,-411.72962433,0.0001726,2]
[340658162,1729608662401,-500.0,0.0001726,2]
[340658163,1729608662411,-539.14,0.0001726,2]
[340658164,1729608662422,-500.0,0.0001726,2]
[340658165,1729608662432,-500.0,0.0001726,2]
[340658166,1729608662441,-500.0,0.0001726,2]
[340658167,1729608662451,-500.0,0.0001726,2]
[340658168,1729608662461,-500.0,0.0001726,2]
[340658169,1729608662470,-500.0,0.0001726,2]
[340658170,1729608662481,-577.41,0.0001726,2]
[340658171,1729608662491,-497.15966733,0.0001726,2]
[340658172,1729608662501,-500.0,0.0001726,2]
[340658173,1729608662512,-151.0,0.0001726,2]
[340658174,1729608662522,-762.21,0.0001726,2]
[340658175,1729608662532,-500.0,0.0001726,2]
[340658176,1729608662542,-500.0,0.0001726,2]
[340658177,1729608662552,-500.0,0.0001726,2]
[340658178,1729608662561,-500.0,0.0001726,2]
[340658179,1729608662571,-500.0,0.0001726,2]
[340658180,1729608662581,-500.0,0.0001726,2]
[340658181,1729608662590,-616.37,0.0001726,2]
[340658182,1729608662600,-1020.25,0.0001726,2]
[340658183,1729608662611,-500.0,0.0001726,2]
[340658184,1729608662623,-500.0,0.0001726,2]
[340658185,1729608662633,-1057.03,0.0001726,2]
[340658186,1729608662645,-500.0,0.0001726,2]
[340658187,1729608662655,-154.257596,0.0001726,2]
[340658188,1729608662665,-500.0,0.0001726,2]
[340658189,1729608662675,-162.494166,0.0001726,2]
[340658190,1729608662685,-494.40838,0.0001726,2]
[340658191,1729608662695,-522.59,0.0001726,2]
[340658192,1729608662705,-162.494166,0.0001726,2]
[340658193,1729608662715,-494.40838,0.0001726,2]
[340658194,1729608662724,-500.0,0.0001726,2]
[340658195,1729608662742,-860.17,0.0001726,2]
[340658196,1729608662752,-151.0,0.0001726,2]
[340658197,1729608662763,-151.0,0.0001726,2]
[340658198,1729608662774,-500.0,0.0001726,2]
[340658199,1729608662784,-864.69,0.0001726,2]
[340658200,1729608662794,-500.0,0.0001726,2]
[340658201,1729608662804,-1202.76,0.0001726,2]
[340658202,1729608662813,-591.742574,0.0001726,2]
[340658203,1729608662823,-789.04,0.0001726,2]
[340658204,1729608662833,-591.742574,0.0001726,2]
[340658205,1729608662843,-500.0,0.0001726,2]
[340658206,1729608662852,-538.21,0.0001726,2]
[340658207,1729608662862,-631.35,0.0001726,2]
[340658208,1729608662872,-532.35,0.0001726,2]
[340658209,1729608662882,-512.68,0.0001726,2]
[340658210,1729608662892,-555.18,0.0001726,2]
[340658211,1729608662902,-500.0,0.0001726,2]
[340658212,1729608662912,-500.0,0.0001726,2]
[340658213,1729608662923,-1111.29201,0.0001726,2]
[340658214,1729608662934,-151.0,0.0001726,2]
[340658215,1729608662945,-562.8,0.0001726,2]
[340658216,1729608662956,-1111.29201,0.0001726,2]
[340658217,1729608662965,-532.86,0.0001726,2]
[340658218,1729608662976,-500.0,0.0001726,2]
[340658219,1729608662986,-779.92,0.0001726,2]
[340658220,1729608662996,-624.58,0.0001726,2]
[340658221,1729608663006,-500.0,0.0001726,2]
[340658222,1729608663016,-779.03,0.0001726,2]
[340658223,1729608663026,-627.94847058,0.0001726,2]
[340658224,1729608663037,-500.0,0.0001726,2]
[340658225,1729608663047,-699.55,0.0001726,2]
[340658226,1729608663058,-505.68,0.0001726,2]
[340658227,1729608663068,-500.0,0.0001726,2]
[340658228,1729608663078,-151.0,0.0001726,2]
[340658229,1729608663091,-823.72,0.0001726,2]
[340658230,1729608663101,-151.0,0.0001726,2]
[340658231,1729608663111,-3328.842845,0.0001726,2]
[340658232,1729608663121,-640.301027,0.0001726,2]
[340658233,1729608663132,-3328.842845,0.0001726,2]
[340658234,1729608663142,-640.301027,0.0001726,2]
[340658235,1729608663152,-500.0,0.0001726,2]
[340658236,1729608663162,-151.0,0.0001726,2]
[340658237,1729608663173,-151.0,0.0001726,2]
[340658238,1729608663182,-500.0,0.0001726,2]
[340658239,1729608663193,-202.569253,0.0001726,2]
[340658240,1729608663203,-805.27,0.0001726,2]
[340658241,1729608663213,-202.569253,0.0001726,2]
[340658242,1729608663223,-1100.65,0.0001726,2]
[340658243,1729608663236,-1571.11,0.0001726,2]
[340658244,1729608663246,-980.92,0.0001726,2]
[340658245,1729608663256,-200.0,0.0001726,2]
[340658246,1729608663266,-500.0,0.0001726,2]
[340658247,1729608663278,-798.01,0.0001726,2]
[340658248,1729608663287,-549.31,0.0001726,2]
[340658249,1729608663298,-1314.33,0.0001726,2]
[340658250,1729608663308,-1726.39,0.0001726,2]
[340658251,1729608663319,-776.88,0.0001726,2]
[340658252,1729608663328,-778.58,0.0001726,2]
[340658253,1729608663338,-500.0,0.0001726,2]
[340658254,1729608663348,-263.371747,0.0001726,2]
[340658255,1729608663357,-263.371747,0.0001726,2]
[340658256,1729608663367,-500.0,0.0001726,2]
[340658257,1729608663377,-263.371747,0.0001726,2]
[340658258,1729608663387,-263.371747,0.0001726,2]
[340658259,1729608663397,-567.14,0.0001726,2]
[340658260,1729608663407,-287.77831,0.0001726,2]
[340658261,1729608663417,-683.05,0.0001726,2]
[340658262,1729608663428,-801.67,0.0001726,2]
[340658263,1729608663438,-287.77831,0.0001726,2]
[340658264,1729608663448,-500.0,0.0001726,2]
[340658265,1729608663458,-927.15,0.0001726,2]
[340658266,1729608663468,-6799.78,0.0001726,2]
[340658267,1729608663479,-572.57,0.0001726,2]
[340658268,1729608663489,-678.82,0.0001726,2]
[340658269,1729608663498,-152.632459,0.0001726,2]
[340658270,1729608663508,-152.632459,0.0001726,2]
[340658271,1729608663518,-500.0,0.0001726,2]
[340658272,1729608663528,-571.53,0.0001726,2]
[340658273,1729608663539,-152.632459,0.0001726,2]
[340658274,1729608663549,-152.632459,0.0001726,2]
[340658275,1729608663560,-500.0,0.0001726,2]
[340658276,1729608663570,-1244.47,0.0001726,2]
[340658277,1729608663579,-500.0,0.0001726,2]
[340658278,1729608663590,-504.72,0.0001726,2]
[340658279,1729608663600,-786.55,0.0001726,2]
[340658280,1729608663610,-642.41,0.0001726,2]
[340658281,1729608663620,-500.0,0.0001726,2]
[340658282,1729608663630,-966.55,0.0001726,2]
[340658283,1729608663642,-500.0,0.0001726,2]
[340658284,1729608663652,-1529.93,0.0001726,2]
[340658285,1729608663662,-770.81,0.0001726,2]
[340658286,1729608663672,-500.0,0.0001726,2]
[340658287,1729608663683,-151.0,0.0001726,2]
[340658288,1729608663693,-404.42528,0.0001726,2]
[340658289,1729608663703,-404.42528,0.0001726,2]
[340658290,1729608663712,-546.62,0.0001726,2]
[340658291,1729608663723,-404.42528,0.0001726,2]
[340658292,1729608663735,-161.629321,0.0001726,2]
[340658293,1729608663746,-404.42528,0.0001726,2]
[340658294,1729608663756,-161.629321,0.0001726,2]
[340658295,1729608663770,-151.0,0.0001726,2]
[340658296,1729608663783,-500.0,0.0001726,2]
[340658297,1729608663794,-548.04,0.0001726,2]
[340658298,1729608663805,-826.27,0.0001726,2]
[340658299,1729608663814,-161.629321,0.0001726,2]
[340658300,1729608663824,-161.629321,0.0001726,2]
[340658301,1729608663834,-500.0,0.0001726,2]
[340658302,1729608663844,-500.0,0.0001726,2]
[340658303,1729608663854,-774.8,0.0001726,2]
[340658304,1729608663864,-500.0,0.0001726,2]
[340658305,1729608663874,-2089.2,0.0001726,2]
[340658306,1729608663884,-774.02,0.0001726,2]
[340658307,1729608663894,-500.0,0.0001726,2]
[340658308,1729608663903,-500.0,0.0001726,2]
[340658309,1729608663914,-500.0,0.0001726,2]
[340658310,1729608663924,-559.19,0.0001726,2]
[340658311,1729608663935,-500.0,0.0001726,2]
[340658312,1729608663944,-500.0,0.0001726,2]
[340658313,1729608663955,-500.0,0.0001726,2]
[340658314,1729608663965,-537.03,0.0001726,2]
[340658315,1729608663975,-500.0,0.0001726,2]
[340658316,1729608664133,-1110.8,0.0001726,2]
[340658317,1729608664143,-500.0,0.0001726,2]
[340658318,1729608664153,-1001.286898,0.0001726,2]
[340658319,1729608664163,-558.44,0.0001726,2]
[340658320,1729608664173,-921.08,0.0001726,2]
[340658321,1729608664183,-1001.286894,0.0001726,2]
[340658322,1729608664192,-630.67,0.0001726,2]
[340658323,1729608664202,-3783.04,0.0001726,2]
[340658324,1729608664211,-500.0,0.0001726,2]
[340658325,1729608664223,-975.34,0.0001726,2]
[340658326,1729608664235,-500.0,0.0001726,2]
[340658327,1729608664245,-557.35,0.0001726,2]
[340658328,1729608664254,-549.72,0.0001726,2]
[340658329,1729608664263,-249.840928,0.0001726,2]
[340658330,1729608664273,-500.0,0.0001726,2]
[340658331,1729608664282,-249.840932,0.0001726,2]
[340658332,1729608664291,-710.19,0.0001726,2]
[340658333,1729608664301,-872.91,0.0001726,2]
[340658334,1729608664311,-500.0,0.0001726,2]
[340658335,1729608664322,-500.0,0.0001726,2]
[340658336,1729608664331,-1251.38,0.0001726,2]
[340658337,1729608664341,-204.434466,0.0001726,2]
[340658338,1729608664351,-766.024157,0.0001726,2]
[340658339,1729608664361,-581.55,0.0001726,2]
[340658340,1729608664370,-500.0,0.0001726,2]
[340658341,1729608664380,-8130.08,0.0001726,2]
[340658342,1729608664390,-204.434476,0.0001726,2]
[340658343,1729608664399,-766.024153,0.0001726,2]
[340658344,1729608664409,-500.0,0.0001726,2]
[340658345,1729608664418,-500.0,0.0001726,2]
[340658346,1729608664428,-537.93,0.0001726,2]
[340658347,1729608664437,-500.0,0.0001726,2]
[340658348,1729608664447,-500.0,0.0001726,2]
[340658349,1729608664457,-500.0,0.0001726,2]
[340658350,1729608664466,-500.0,0.0001726,2]
[340658351,1729608664476,-522.82,0.0001726,2]
[340658352,1729608664485,-746.8,0.0001726,2]
[340658353,1729608664494,-578.53,0.0001726,2]
[340658354,1729608664504,-677.46,0.0001726,2]
[340658355,1729608664513,-178.936755,0.00017267,2]
[340658356,1729608664523,-3500.0,0.00017381,2]
[340658357,1729608664532,-151.0,0.00017447,2]
[340658358,1729608664542,-1500.0,0.00017447,2]
[340658359,1729608664551,-1500.0,0.00017447,2]
[340658360,1729608664561,-1500.0,0.00017447,2]
[340658361,1729608664570,-1500.0,0.00017447,2]
[340658362,1729608664579,-1500.0,0.00017447,2]
[340658363,1729608664589,-1500.0,0.00017447,2]
[340658364,1729608664598,-769.60502252,0.00017534,2]
[340658365,1729608664607,-151.0,0.00017534,2]
[340658366,1729608664616,-151.0,0.00017534,2]
[340658367,1729608664626,-151.0,0.00017534,2]
[340658368,1729608664636,-325.764258,0.00017534,2]
[340658369,1729608664647,-325.764258,0.00017534,2]
[340658370,1729608664657,-500.0,0.00017534,2]
[340658371,1729608664666,-500.0,0.00017534,2]
[340658372,1729608664675,-500.0,0.00017534,2]
[340658373,1729608664684,-500.0,0.00017534,2]
[340658374,1729608664694,-500.0,0.00017534,2]
[340658375,1729608664703,-151.0,0.00017534,2]
[340658376,1729608664713,-500.0,0.00017534,2]
[340658377,1729608664722,-665.58,0.00017534,2]
[340658378,1729608664733,-826.35,0.00017534,2]
[340658379,1729608664742,-500.0,0.00017534,2]
[340658380,1729608664751,-500.0,0.00017534,2]
[340658381,1729608664760,-500.0,0.00017534,2]
[340658382,1729608664773,-1000.0,0.00017534,2]
[340658383,1729608664782,-500.0,0.00017534,2]
[340658384,1729608664791,-567.91,0.00017534,2]
[340658385,1729608664801,-151.0,0.00017534,2]
[340658386,1729608664811,-500.0,0.00017534,2]
[340658387,1729608664820,-500.0,0.00017534,2]
[340658388,1729608664830,-500.0,0.00017534,2]
[340658389,1729608664839,-151.0,0.00017534,2]
[340658390,1729608664849,-500.0,0.00017534,2]
[340658391,1729608664859,-151.0,0.00017534,2]
[340658392,1729608664869,-500.0,0.00017534,2]
[340658393,1729608664880,-500.0,0.00017534,2]
[340658394,1729608664889,-151.0,0.00017534,2]
[340658395,1729608664899,-500.0,0.00017534,2]
[340658396,1729608664909,-500.0,0.00017534,2]
[340658397,1729608664918,-713.81,0.00017534,2]
[340658398,1729608664928,-500.0,0.00017534,2]
[340658399,1729608664938,-361.488313,0.00017534,2]
[340658400,1729608664950,-500.0,0.00017534,2]
[340658401,1729608664962,-660.77,0.00017534,2]
[340658402,1729608664971,-361.488313,0.00017534,2]
[340658403,1729608664983,-282.47421383,0.00017534,2]
[340658404,1729608664992,-551.66,0.00017534,2]
[340658405,1729608665003,-754.58,0.00017534,2]
[340658406,1729608665012,-1146.073418,0.00017534,2]
[340658407,1729608665023,-1146.073418,0.00017534,2]
[340658408,1729608665033,-795.47,0.00017534,2]
[340658409,1729608665043,-500.0,0.00017534,2]
[340658410,1729608665052,-749.34,0.00017534,2]
[340658411,1729608665062,-500.0,0.00017534,2]
[340658412,1729608665072,-151.0,0.00017534,2]
[340658413,1729608665081,-500.0,0.00017534,2]
[340658414,1729608665091,-500.0,0.00017534,2]
[340658415,1729608665100,-215.91,0.00017534,2]
[340658416,1729608665109,-500.0,0.00017534,2]
[340658417,1729608665119,-500.0,0.00017534,2]
[340658418,1729608665128,-626.98,0.00017534,2]
[340658419,1729608665138,-151.0,0.00017534,2]
[340658420,1729608665147,-500.0,0.00017534,2]
[340658421,1729608665157,-500.0,0.00017534,2]
[340658422,1729608665167,-1265.04,0.00017534,2]
[340658423,1729608665178,-624.21,0.00017534,2]
[340658424,1729608665188,-172.647933,0.00017534,2]
[340658425,1729608665199,-614.3,0.00017534,2]
[340658426,1729608665208,-172.647933,0.00017534,2]
[340658427,1729608665218,-500.0,0.00017534,2]
[340658428,1729608665229,-516.71,0.00017534,2]
[340658429,1729608665240,-500.0,0.00017534,2]
[340658430,1729608665251,-1032.21,0.00017534,2]
[340658431,1729608665260,-916.12,0.00017534,2]
[340658432,1729608665270,-151.0,0.00017534,2]
[340658433,1729608665280,-500.0,0.00017534,2]
[340658434,1729608665289,-500.0,0.00017534,2]
[340658435,1729608665299,-530.55,0.00017534,2]
[340658436,1729608665310,-687.75,0.00017534,2]
[340658437,1729608665319,-151.0,0.00017534,2]
[340658438,1729608665330,-500.0,0.00017534,2]
[340658439,1729608665341,-500.0,0.00017534,2]
[340658440,1729608665352,-500.0,0.00017534,2]
[340658441,1729608665362,-582.19,0.00017534,2]
[340658442,1729608665371,-500.0,0.00017534,2]
[340658443,1729608665380,-539.14,0.00017534,2]
[340658444,1729608665391,-500.0,0.00017534,2]
[340658445,1729608665401,-500.0,0.00017534,2]
[340658446,1729608665411,-500.0,0.00017534,2]
[340658447,1729608665423,-512.04564686,0.00017534,2]
[340658448,1729608665433,-500.0,0.00017534,2]
[340658449,1729608665444,-500.0,0.00017534,2]
[340658450,1729608665454,-577.41,0.00017534,2]
[340658451,1729608665463,-500.0,0.00017534,2]
[340658452,1729608665473,-151.0,0.00017534,2]
[340658453,1729608665483,-762.21,0.00017534,2]
[340658454,1729608665493,-500.0,0.00017534,2]
[340658455,1729608665502,-500.0,0.00017534,2]
[340658456,1729608665511,-500.0,0.00017534,2]
[340658457,1729608665521,-500.0,0.00017534,2]
[340658458,1729608665530,-500.0,0.00017534,2]
[340658459,1729608665539,-500.0,0.00017534,2]
[340658460,1729608665548,-616.37,0.00017534,2]
[340658461,1729608665558,-1020.25,0.00017534,2]
[340658462,1729608665568,-500.0,0.00017534,2]
[340658463,1729608665577,-500.0,0.00017534,2]
[340658464,1729608665586,-1057.03,0.00017534,2]
[340658465,1729608665596,-500.0,0.00017534,2]
[340658466,1729608665605,-500.0,0.00017534,2]
[340658467,1729608665615,-162.494166,0.00017534,2]
[340658468,1729608665624,-494.40838,0.00017534,2]
[340658469,1729608665634,-522.59,0.00017534,2]
[340658470,1729608665644,-162.494166,0.00017534,2]
[340658471,1729608665654,-494.40838,0.00017534,2]
[340658472,1729608665664,-500.0,0.00017534,2]
[340658473,1729608665674,-860.17,0.00017534,2]
[340658474,1729608665683,-151.0,0.00017534,2]
[340658475,1729608665693,-151.0,0.00017534,2]
[340658476,1729608665701,-500.0,0.00017534,2]
[340658477,1729608665711,-864.69,0.00017534,2]
[340658478,1729608665721,-500.0,0.00017534,2]
[340658479,1729608665731,-1202.76,0.00017534,2]
[340658480,1729608665741,-591.742574,0.00017534,2]
[340658481,1729608665750,-789.04,0.00017534,2]
[340658482,1729608665759,-591.742574,0.00017534,2]
[340658483,1729608665773,-500.0,0.00017534,2]
[340658484,1729608665782,-538.21,0.00017534,2]
[340658485,1729608665792,-631.35,0.00017534,2]
[340658486,1729608665802,-532.35,0.00017534,2]
[340658487,1729608665811,-512.68,0.00017534,2]
[340658488,1729608665820,-555.18,0.00017534,2]
[340658489,1729608665829,-500.0,0.00017534,2]
[340658490,1729608665838,-500.0,0.00017534,2]
[340658491,1729608665850,-1111.29201,0.00017534,2]
[340658492,1729608665860,-270.769812,0.00017534,2]
[340658493,1729608665869,-562.8,0.00017534,2]
[340658494,1729608665879,-1111.29201,0.00017534,2]
[340658495,1729608665888,-532.86,0.00017534,2]
[340658496,1729608665898,-500.0,0.00017534,2]
[340658497,1729608665907,-779.92,0.00017534,2]
[340658498,1729608665917,-624.58,0.00017534,2]
[340658499,1729608665926,-500.0,0.00017534,2]
[340658500,1729608665936,-779.03,0.00017534,2]
[340658501,1729608665946,-500.0,0.00017534,2]
[340658502,1729608665955,-699.55,0.00017534,2]
[340658503,1729608665964,-505.68,0.00017534,2]
[340658504,1729608665974,-500.0,0.00017534,2]
[340658505,1729608665985,-151.0,0.00017534,2]
[340658506,1729608665994,-823.72,0.00017534,2]
[340658507,1729608666004,-3328.842845,0.00017534,2]
[340658508,1729608666013,-640.301027,0.00017534,2]
[340658509,1729608666023,-3328.842845,0.00017534,2]
[340658510,1729608666032,-640.301027,0.00017534,2]
[340658511,1729608666042,-500.0,0.00017534,2]
[340658512,1729608666052,-151.0,0.00017534,2]
[340658513,1729608666061,-151.0,0.00017534,2]
[340658514,1729608666071,-500.0,0.00017534,2]
[340658515,1729608666080,-805.27,0.00017534,2]
[340658516,1729608666090,-202.569253,0.00017534,2]
[340658517,1729608666099,-202.569253,0.00017534,2]
[340658518,1729608666108,-1100.65,0.00017534,2]
[340658519,1729608666117,-1571.11,0.00017534,2]
[340658520,1729608666127,-980.92,0.00017534,2]
[340658521,1729608666136,-211.68407409,0.00017534,2]
[340658522,1729608666145,-314.97760155,0.00017534,2]
[340658523,1729608666155,-798.01,0.00017534,2]
[340658524,1729608666165,-1314.33,0.00017534,2]
[340658525,1729608666174,-1726.39,0.00017534,2]
[340658526,1729608666183,-776.88,0.00017534,2]
[340658527,1729608666192,-778.58,0.00017534,2]
[340658528,1729608666203,-500.0,0.00017534,2]
[340658529,1729608666213,-263.371747,0.00017534,2]
[340658530,1729608666224,-500.0,0.00017534,2]
[340658531,1729608666237,-263.371747,0.00017534,2]
[340658532,1729608666250,-567.14,0.00017534,2]
[340658533,1729608666260,-287.77831,0.00017534,2]
[340658534,1729608666270,-683.05,0.00017534,2]
[340658535,1729608666282,-801.67,0.00017534,2]
[340658536,1729608666292,-287.77831,0.00017534,2]
[340658537,1729608666302,-500.0,0.00017534,2]
[340658538,1729608666311,-927.15,0.00017534,2]
[340658539,1729608666321,-6799.78,0.00017534,2]
[340658540,1729608666330,-572.57,0.00017534,2]
[340658541,1729608666340,-678.82,0.00017534,2]
[340658542,1729608666351,-152.632459,0.00017534,2]
[340658543,1729608666360,-500.0,0.00017534,2]
[340658544,1729608666370,-571.53,0.00017534,2]
[340658545,1729608666379,-152.632459,0.00017534,2]
[340658546,1729608666389,-500.0,0.00017534,2]
[340658547,1729608666398,-1244.47,0.00017534,2]
[340658548,1729608666407,-500.0,0.00017534,2]
[340658549,1729608666416,-786.55,0.00017534,2]
[340658550,1729608666426,-504.72,0.00017534,2]
[340658551,1729608666435,-642.41,0.00017534,2]
[340658552,1729608666444,-500.0,0.00017534,2]
[340658553,1729608666453,-966.55,0.00017534,2]
[340658554,1729608666463,-500.0,0.00017534,2]
[340658555,1729608666473,-1529.93,0.00017534,2]
[340658556,1729608666484,-500.0,0.00017534,2]
[340658557,1729608666494,-770.81,0.00017534,2]
[340658558,1729608666503,-151.0,0.00017534,2]
[340658559,1729608666512,-404.42528,0.00017534,2]
[340658560,1729608666522,-546.62,0.00017534,2]
[340658561,1729608666531,-404.42528,0.00017534,2]
[340658562,1729608666541,-161.629321,0.00017534,2]
[340658563,1729608666550,-151.0,0.00017534,2]
[340658564,1729608666559,-500.0,0.00017534,2]
[340658565,1729608666568,-548.04,0.00017534,2]
[340658566,1729608666577,-826.27,0.00017534,2]
[340658567,1729608666586,-500.0,0.00017534,2]
[340658568,1729608666595,-161.629321,0.00017534,2]
[340658569,1729608666605,-612.59370339,0.00017534,2]
[340658570,1729608666614,-774.8,0.00017534,2]
[340658571,1729608666623,-500.0,0.00017534,2]
[340658572,1729608666632,-2089.2,0.00017534,2]
[340658573,1729608666642,-774.02,0.00017534,2]
[340658574,1729608666651,-500.0,0.00017534,2]
[340658575,1729608666661,-500.0,0.00017534,2]
[340658576,1729608666671,-559.19,0.00017534,2]
[340658577,1729608666680,-500.0,0.00017534,2]
[340658578,1729608666690,-500.0,0.00017534,2]
[340658579,1729608666699,-500.0,0.00017534,2]